{"text_format":"3","workbook":"xlsx","n_sheets":2,"sheets":["Početak","Budžet za venčanje"],"read":"whole","date_system":"1900"}

{"sheet":"Početak","index":0,"n_rows":7,"n_cols":2,"rows_kept":7}
[null,"O OVOM PREDLOŠKU"]
[null,"Koristite ovaj predložak da biste evidentirali stvarne troškove venčanja za razne stavke i pratili ih u odnosu na budžetirane iznose."]
[null,"Unesite troškove za odeću, ukrase, poklone, cveće, muziku fotografije, prijem, papirnu galanteriju, prevoz i razne stavke u odgovarajuće tabele."]
[null,"Ukupni procenjeni i ukupni stvarni troškovi automatski se izračunavaju."]
[null,"Beleška: "]
[null,"Dodatna uputstva su navedena u koloni A u radnom listu „BUDŽET ZA VENČANJE“. Ovaj tekst je namerno skriven. Da biste uklonili tekst, izaberite kolonu A, a zatim izaberite stavku „IZBRIŠI“. Da biste otkrili tekst, izaberite kolonu A, a zatim promenite boju fonta."]
[null,"Da biste saznali više o tabelama, pritisnite taster SHIFT, a zatim u okviru tabele pritisnite taster F10, izaberite opciju „TABELA“, a zatim stavku „ALTERNATIVNI TEKST“."]

{"sheet":"Budžet za venčanje","index":1,"n_rows":93,"n_cols":4,"rows_kept":93,"merged":[[0,1,0,3],[2,1,2,3],[6,1,6,3],[15,1,15,3],[25,1,25,3],[34,1,34,3],[43,1,43,3],[50,1,50,3],[59,1,59,3],[68,1,68,3],[77,1,77,3],[85,1,85,3]]}
[null,"BUDŽET ZA VENČANJE"]
[]
[null,"UKUPNI TROŠKOVI "]
[null,"Stavka ","Procenjeno","Stvarno"]
[null,"Ukupni troškovi ",{"$f":"SUM(Odeća[[#Totals],[Procenjeno]],Ukrasi[[#Totals],[Procenjeno]],Pokloni[[#Totals],[Procenjeno]],Cveće[[#Totals],[Procenjeno]],Muzika[[#Totals],[Procenjeno]],Fotografije[[#Totals],[Procenjeno]],Prijem[[#Totals],[Procenjeno]],PapirnaGalanterijaIštampanje[[#Totals],[Procenjeno]],Prevoz[[#Totals],[Procenjeno]],DrugiTroškovi[[#Totals],[Procenjeno]])","v":0},{"$f":"SUM(Odeća[[#Totals],[Stvarno]],Ukrasi[[#Totals],[Stvarno]],Pokloni[[#Totals],[Stvarno]],Cveće[[#Totals],[Stvarno]],Muzika[[#Totals],[Stvarno]],Fotografije[[#Totals],[Stvarno]],Prijem[[#Totals],[Stvarno]],PapirnaGalanterijaIštampanje[[#Totals],[Stvarno]],Prevoz[[#Totals],[Stvarno]],DrugiTroškovi[[#Totals],[Stvarno]],)","v":0}]
[]
[null,"ODEĆA"]
[null,"Stavka ","Procenjeno","Stvarno"]
[null,"Verenički prsten"]
[null,"Burme"]
[null,"Venčanica"]
[null,"Veo/ukras na glavi"]
[null,"Drugo:"]
[null,"Ukupno za odela",{"$f":"SUBTOTAL(109,Odeća[Procenjeno])","v":0},{"$f":"SUBTOTAL(109,Odeća[Stvarno])","v":0}]
[]
[null,"DEKORACIJA"]
[null,"Stavka ","Procenjeno","Stvarno"]
[null,"Vrpce za crkvene klupe/druga mesta"]
[null,"Ukrasi za stolove (bez cvetova)"]
[null,"Sveće"]
[null,"Rasveta"]
[null,"Baloni"]
[null,"Drugo:"]
[null,"Ukupno za ukrase",{"$f":"SUBTOTAL(109,Ukrasi[Procenjeno])","v":0},{"$f":"SUBTOTAL(109,Ukrasi[Stvarno])","v":0}]
[]
[null,"POKLONI"]
[null,"Stavka ","Procenjeno","Stvarno"]
[null,"Učesnici"]
[null,"Mladenci"]
[null,"Roditelji"]
[null,"Čitači/drugi učesnici"]
[null,"Drugo:"]
[null,"Ukupno poklona",{"$f":"SUBTOTAL(109,Pokloni[Procenjeno])","v":0},{"$f":"SUBTOTAL(109,Pokloni[Stvarno])","v":0}]
[]
[null,"CVEĆE"]
[null,"Stavka ","Procenjeno","Stvarno"]
[null,"Buketi"]
[null,"Ukrasi za revere"]
[null,"Ukrasi"]
[null,"Ceremonija"]
[null,"Drugo:"]
[null,"Ukupno za cveće",{"$f":"SUBTOTAL(109,Cveće[Procenjeno])","v":0},{"$f":"SUBTOTAL(109,Cveće[Stvarno])","v":0}]
[]
[null,"MUZIKA"]
[null,"Stavka ","Procenjeno","Stvarno"]
[null,"Muzičari za ceremoniju"]
[null,"Bend/DJ za prijem"]
[null,"Drugo:"]
[null,"Ukupno za muziku",{"$f":"SUBTOTAL(109,Muzika[Procenjeno])","v":0},{"$f":"SUBTOTAL(109,Muzika[Stvarno])","v":0}]
[]
[null,"FOTOGRAFIJE"]
[null,"Stavka ","Procenjeno","Stvarno"]
[null,"Formalnosti"]
[null,"Fotografije"]
[null,"Dodatne slike"]
[null,"Foto-albumi"]
[null,"Drugo:"]
[null,"Ukupno za fotografije",{"$f":"SUBTOTAL(109,Fotografije[Procenjeno])","v":0},{"$f":"SUBTOTAL(109,Fotografije[Stvarno])","v":0}]
[]
[null,"PRIJEM "]
[null,"Stavka ","Procenjeno","Stvarno"]
[null,"Naknade za sobe/salu"]
[null,"Stolovi i stolice"]
[null,"Hrana"]
[null,"Posteljina"]
[null,"Drugo:"]
[null,"Ukupno za prijem (izuzev muzike i ukrasa)",{"$f":"SUBTOTAL(109,Prijem[Procenjeno])","v":0},{"$f":"SUBTOTAL(109,Prijem[Stvarno])","v":0}]
[]
[null,"PAPIRNA GALANTERIJA I ŠTAMPANJE"]
[null,"Stavka ","Procenjeno","Stvarno"]
[null,"Pozivnice"]
[null,"Objave"]
[null,"Zahvalnice"]
[null,"Lična papirna galanterija"]
[null,"Drugo:"]
[null,"Ukupno za papirnu galanteriju/štampanje",{"$f":"SUBTOTAL(109,PapirnaGalanterijaIštampanje[Procenjeno])","v":0},{"$f":"SUBTOTAL(109,PapirnaGalanterijaIštampanje[Stvarno])","v":0}]
[]
[null,"PREVOZ"]
[null,"Stavka ","Procenjeno","Stvarno"]
[null,"Limuzine/kolica"]
[null,"Parking"]
[null,"Taksi"]
[null,"Drugo:"]
[null,"Ukupno za prevoz",{"$f":"SUBTOTAL(109,Prevoz[Procenjeno])","v":0},{"$f":"SUBTOTAL(109,Prevoz[Stvarno])","v":0}]
[]
[null,"OSTALI TROŠKOVI"]
[null,"Stavka ","Procenjeno","Stvarno"]
[null,"Matičar/sveštenik"]
[null,"Nadoknada za crkvu/mesto ceremonije"]
[null,"Koordinator venčanja"]
[null,"Probna večera"]
[null,"Drugo:"]
[null,"Ukupno za ostale troškove",{"$f":"SUBTOTAL(109,DrugiTroškovi[Procenjeno])","v":0},{"$f":"SUBTOTAL(109,DrugiTroškovi[Stvarno])","v":0}]